bitfinex-derivatives/quotes_BTCF0:USTF0_20251215
["timestamp","ask_amount","ask_price","bid_price","bid_amount"]
[1765809611465,0.17010979,89606.0,89604.0,0.0111604]
[1765809611673,0.17210979,89606.0,89604.0,0.0111604]
[1765809611976,0.01647,89600.0,89596.0,0.14978918]
[1765809612182,0.19647,89600.0,89597.0,0.71228]
[1765809612561,0.05645,89596.0,89595.0,0.00016746]
[1765809612870,0.19012977,89596.0,89595.0,0.00016746]
[1765809613373,0.24657977,89596.0,89595.0,0.00016746]
[1765809613672,0.24657977,89596.0,89595.0,0.03812746]
[1765809613871,0.19012977,89596.0,89595.0,0.03812746]
[1765809614575,0.24657977,89596.0,89595.0,0.03812746]
[1765809614777,0.24757977,89596.0,89595.0,0.03812746]
[1765809615577,0.24757977,89596.0,89595.0,0.04012746]
[1765809615877,0.21966959,89596.0,89595.0,0.04012746]
[1765809616071,0.19099959,89596.0,89595.0,0.04012746]
[1765809616268,0.24744959,89596.0,89595.0,0.04012746]
[1765809616668,0.24744959,89596.0,89595.0,0.71372746]
[1765809617372,0.24744959,89596.0,89595.0,0.00216746]
[1765809617578,0.05645,89581.0,89580.0,0.14945763]
[1765809617875,0.05645,89578.0,89571.0,0.14945763]
[1765809618179,0.22645,89578.0,89577.0,0.71153325]
[1765809618884,0.05645,89570.0,89524.0,0.001]
[1765809619174,0.01647,89547.0,89540.0,0.14945763]
[1765809619380,0.01647,89547.0,89545.0,0.0111677]
[1765809619381,0.20647,89547.0,89545.0,0.0111677]
[1765809619878,0.00013013,89546.0,89537.0,0.14945763]
[1765809620074,0.19013013,89546.0,89545.0,0.0111677]
[1765809620576,0.19013013,89546.0,89533.0,0.00016746]
[1765809620577,0.05645,89542.0,89541.0,0.0111682]
[1765809620780,0.05645,89534.0,89533.0,0.00016746]
[1765809620966,0.05645,89534.0,89533.0,0.13884746]
[1765809620967,0.17,89534.0,89533.0,0.13884746]
[1765809621178,0.00013013,89546.0,89545.0,0.0111677]
[1765809621481,0.18013013,89546.0,89545.0,0.0111677]
[1765809622077,0.05942,89540.0,89535.0,0.0111689]
[1765809622378,0.18,89540.0,89538.0,0.0111686]
[1765809623186,0.18,89540.0,89539.0,0.11168504]
[1765809623378,0.00013013,89546.0,89539.0,0.11168504]
[1765809623567,0.20013013,89546.0,89539.0,0.11168504]
[1765809623776,0.20013013,89546.0,89545.0,0.0111677]
[1765809624983,0.20013013,89546.0,89545.0,0.12284277]
[1765809625175,0.25955013,89546.0,89545.0,0.12284277]
[1765809625376,0.05942,89539.0,89538.0,0.004]
[1765809625681,0.05942,89524.0,89520.0,0.16062853]
[1765809625986,0.21942,89524.0,89523.0,0.02537283]
[1765809626184,0.16,89524.0,89523.0,0.02537283]
[1765809627282,0.01791,89532.0,89531.0,0.0119295]
[1765809627487,0.20791,89532.0,89531.0,0.0119295]
[1765809627685,0.25013013,89546.0,89545.0,0.0111677]
[1765809627987,0.19013013,89546.0,89545.0,0.7222477]
[1765809628372,0.19013013,89546.0,89545.0,0.83471021]
[1765809628373,0.00013013,89546.0,89545.0,0.83471021]
[1765809628577,0.06013013,89546.0,89545.0,0.83471021]
[1765809628890,0.21955013,89546.0,89545.0,0.83391021]
[1765809629491,0.23955013,89546.0,89545.0,0.7222477]
[1765809629682,0.23955013,89546.0,89537.0,0.00016746]
[1765809629885,0.0582,89545.0,89544.0,0.0111678]
[1765809630078,0.2,89545.0,89544.0,0.0111678]
[1765809630477,0.2,89545.0,89544.0,0.0115478]
[1765809630688,0.13,89545.0,89544.0,0.12322411]
[1765809630884,0.18641,89545.0,89544.0,0.0111678]
[1765809631186,0.13,89545.0,89544.0,0.0119279]
[1765809631485,0.13,89545.0,89544.0,0.0111679]
[1765809631678,0.00013013,89546.0,89545.0,0.00076]
[1765809631876,0.00016746,89550.0,89549.0,0.0119272]
[1765809632079,0.0111616,89595.0,89557.0,0.0111662]
[1765809632295,0.02899,89562.0,89558.0,0.71108]
[1765809632486,0.07511,89550.0,89549.0,0.0111672]
[1765809632679,0.05871,89545.0,89544.0,0.001]
[1765809632883,0.23871,89545.0,89544.0,0.1644079]
[1765809633078,0.23883374,89545.0,89544.0,0.1644079]
[1765809633284,0.23883374,89545.0,89544.0,0.27606301]
[1765809633585,0.23883374,89545.0,89544.0,0.7243679]
[1765809633791,0.23883374,89545.0,89544.0,0.7122]
[1765809634184,0.23883374,89545.0,89544.0,0.7112]
[1765809634378,0.20911374,89545.0,89544.0,0.7132]
[1765809634981,0.19012374,89545.0,89544.0,0.82563631]
[1765809635181,0.00016746,89553.0,89552.0,0.0119269]
[1765809635382,0.02016746,89553.0,89552.0,0.0119269]
[1765809635681,0.02016746,89553.0,89552.0,0.4119269]
[1765809635986,0.0111634,89580.0,89565.0,0.0111653]
[1765809636188,0.20655833,89566.0,89565.0,0.7222853]
[1765809636487,0.23370833,89566.0,89565.0,0.0111653]
[1765809636681,0.26147833,89566.0,89565.0,0.1928453]
[1765809636883,0.26147833,89566.0,89565.0,0.7222053]
[1765809637082,0.26147833,89566.0,89557.0,0.00016746]
[1765809637083,0.05492,89558.0,89557.0,0.00016746]
[1765809637285,0.05492,89531.0,89514.0,1.57655543]
[1765809637484,0.18,89531.0,89530.0,0.0111696]
[1765809637685,0.05492,89526.0,89525.0,0.1116601]
[1765809637885,0.05492,89525.0,89524.0,0.7222903]
[1765809638088,0.21492,89525.0,89524.0,0.7222903]
[1765809638690,0.21501826,89525.0,89524.0,0.7222903]
[1765809638889,0.16009826,89525.0,89524.0,0.83637156]
[1765809639081,0.21501826,89525.0,89524.0,0.7222903]
[1765809639286,0.16009826,89525.0,89524.0,0.7222903]
[1765809639888,0.16009826,89525.0,89524.0,0.83875156]
[1765809640584,0.16009826,89525.0,89524.0,0.83975156]
[1765809641291,0.16009826,89525.0,89524.0,0.83875156]
[1765809641487,0.00016746,89533.0,89532.0,0.0159294]
[1765809641789,0.02016746,89533.0,89532.0,0.0159294]
[1765809641991,0.00016746,89533.0,89532.0,0.0159294]
[1765809642290,0.00016746,89533.0,89532.0,0.12763066]
[1765809644591,0.00016746,89533.0,89532.0,0.12963066]
[1765809644785,0.0111653,89565.0,89555.0,0.0111665]
[1765809644988,0.24172,89556.0,89555.0,0.7217265]
[1765809645584,0.24172,89556.0,89555.0,0.71056]
[1765809645786,0.02715,89533.0,89532.0,1.47779524]
[1765809646092,0.02715,89533.0,89532.0,0.0131694]
[1765809646093,0.17492,89533.0,89532.0,0.0131694]
[1765809646290,0.2260892,89533.0,89532.0,0.002]
[1765809646489,0.0660902,89525.0,89524.0,0.00016746]
[1765809646690,0.23492,89525.0,89524.0,0.14928746]
[1765809648391,0.05492,89508.0,89506.0,0.07979524]
[1765809648597,0.05492,89508.0,89502.0,0.011173]
[1765809648598,0.05492,89503.0,89502.0,0.011173]
[1765809648894,0.02715,89499.0,89498.0,0.31031833]
[1765809649091,0.21715,89499.0,89498.0,0.80128874]
[1765809649397,0.19009283,89499.0,89498.0,0.79111977]
[1765809650284,0.24501283,89499.0,89498.0,0.02597977]
[1765809650492,0.24501283,89499.0,89498.0,0.73633977]
[1765809652091,0.19009283,89499.0,89498.0,0.73633977]
[1765809652497,0.05501283,89499.0,89498.0,0.01480627]
[1765809652787,0.25501283,89499.0,89498.0,0.71016]
[1765809653190,0.0660945,89491.0,89490.0,0.00016756]
[1765809653389,0.05492,89477.0,89476.0,0.01130388]
[1765809653689,0.17,89477.0,89476.0,0.77616388]
[1765809654405,0.17,89477.0,89476.0,0.72134388]
[1765809654604,0.22492,89477.0,89476.0,0.73642802]
[1765809654802,0.17,89477.0,89476.0,0.76427802]
[1765809654994,0.17,89477.0,89476.0,0.79136802]
[1765809655398,0.22492,89477.0,89476.0,0.73654802]
[1765809655606,0.22492,89477.0,89476.0,0.71028758]
[1765809655607,0.23492,89477.0,89476.0,0.71028758]
[1765809655788,0.23492,89477.0,89476.0,0.00012758]
[1765809655994,0.05492,89469.0,89468.0,0.00016756]
[1765809656301,0.22492,89469.0,89468.0,0.05564756]
[1765809656499,0.22492,89469.0,89468.0,0.06682496]
[1765809656695,0.22492,89469.0,89468.0,0.05564756]
[1765809657500,0.22492,89469.0,89468.0,0.07161173]
[1765809657704,0.19715,89469.0,89468.0,0.07161173]
[1765809657894,0.22492,89469.0,89468.0,0.07161173]
[1765809658396,0.22492,89469.0,89468.0,0.08278913]
[1765809659192,0.22492,89469.0,89468.0,0.07161173]
[1765809659390,0.22492,89469.0,89468.0,0.05564756]
[1765809659600,0.17,89469.0,89468.0,0.11083875]
[1765809659795,0.17,89469.0,89468.0,0.13792875]
[1765809659991,0.3,89483.0,89482.0,0.0111756]
[1765809659992,0.1,89483.0,89482.0,0.0111756]
[1765809660197,0.22492,89483.0,89482.0,0.7210156]
[1765809660795,0.22492,89483.0,89468.0,0.02762875]
[1765809660796,0.05492,89469.0,89468.0,0.00016756]
[1765809661005,0.05492,89453.0,89452.0,1.39668]
[1765809661200,0.05492,89453.0,89437.0,0.02734897]
[1765809661201,0.05492,89443.0,89442.0,0.0111806]
[1765809661399,0.21492,89443.0,89442.0,0.7211806]
[1765809661601,0.0549,89442.0,89433.0,0.21934959]
[1765809661794,0.2549,89442.0,89441.0,0.71010516]
[1765809661995,0.2549,89442.0,89441.0,0.00010516]
[1765809662207,0.2549,89442.0,89441.0,0.71010516]
[1765809662610,0.2549,89442.0,89441.0,0.00010516]
[1765809662802,0.0573,89434.0,89433.0,0.71016766]
[1765809663000,0.2473,89434.0,89433.0,0.71016766]
[1765809663802,0.00016766,89450.0,89433.0,0.71016766]
[1765809663803,0.02971766,89450.0,89449.0,0.0111797]
[1765809664001,0.00016766,89450.0,89449.0,0.7779797]
[1765809664196,0.18016766,89450.0,89449.0,0.7779797]
[1765809664606,0.18016766,89450.0,89449.0,0.0111797]
[1765809664904,0.23757807,89450.0,89440.0,0.21934959]
[1765809665107,0.0573,89434.0,89433.0,0.00016766]
[1765809665302,0.0573,89421.0,89420.0,0.1812]
[1765809665505,0.2373,89421.0,89420.0,0.1812]
[1765809665707,0.18,89421.0,89420.0,0.23792]
[1765809666010,0.0573,89431.0,89430.0,0.011182]
[1765809666197,0.2473,89431.0,89430.0,0.011182]
[1765809666403,0.00016766,89439.0,89438.0,0.0679011]
[1765809666621,0.00016766,89439.0,89430.0,0.17838295]
[1765809666622,0.0573,89431.0,89430.0,0.11181867]
[1765809666814,0.2473,89431.0,89430.0,0.62385867]
[1765809667003,0.0573,89408.0,89399.0,1.39704]
[1765809667204,0.0573,89406.0,89399.0,1.39704]
[1765809667406,0.0573,89406.0,89393.0,0.0273121]
[1765809667407,0.2273,89406.0,89393.0,0.0273121]
[1765809667605,0.0573,89402.0,89401.0,0.70181909]
[1765809667806,0.0573,89402.0,89358.0,0.0111911]
[1765809667807,0.0573,89379.0,89358.0,0.0111911]
[1765809668010,0.0573,89379.0,89338.0,0.0022387]
[1765809668011,0.0282699,89369.0,89357.0,0.66]
[1765809668315,0.02955,89359.0,89358.0,0.02576]
[1765809668500,0.02955,89359.0,89350.0,0.38678974]
[1765809668501,0.0573,89351.0,89350.0,0.16744015]
[1765809668706,0.0573,89351.0,89342.0,0.7225531]
[1765809668707,0.0573,89348.0,89342.0,0.71136]
[1765809668902,0.0573,89343.0,89342.0,0.71136]
[1765809669215,0.268493,89343.0,89342.0,0.6578566]
[1765809669416,0.2573,89343.0,89342.0,0.6578566]
[1765809669609,0.0573,89327.0,89326.0,0.71148685]
[1765809669821,0.18,89327.0,89326.0,0.71148685]
[1765809670022,0.20955,89327.0,89326.0,0.71148685]
[1765809670522,0.18,89327.0,89326.0,0.71148685]
[1765809671114,0.18,89327.0,89326.0,0.76820685]
[1765809671711,0.00016787,89335.0,89326.0,0.76820685]
[1765809671916,0.18016787,89335.0,89333.0,0.0111941]
[1765809672127,0.18016787,89335.0,89328.0,0.0111948]
[1765809672517,0.18016787,89335.0,89326.0,0.71148685]
[1765809672723,0.18016787,89335.0,89331.0,0.0111944]
[1765809672920,0.0670981,89423.0,89331.0,0.0111944]
[1765809672921,0.0111868,89393.0,89352.0,0.0111918]
[1765809673121,0.02955,89351.0,89350.0,0.18952]
[1765809673323,0.02955,89351.0,89332.0,0.16824185]
[1765809673324,0.2473,89351.0,89332.0,0.0111943]
[1765809673622,0.0573,89329.0,89328.0,0.28018252]
[1765809673821,0.2,89329.0,89326.0,0.67692685]
[1765809674930,0.0573,89327.0,89326.0,0.00012685]
[1765809675117,0.19,89327.0,89326.0,0.00012685]
[1765809675314,0.18,89327.0,89326.0,0.05684685]
[1765809675519,0.001,89335.0,89334.0,0.0849041]
[1765809675723,9.761e-05,89359.0,89353.0,0.0111917]
[1765809675916,0.19009761,89359.0,89354.0,0.71188]
[1765809676121,0.19009761,89359.0,89355.0,0.0111915]
[1765809676320,0.19009761,89359.0,89358.0,0.05672]
[1765809676623,0.19009761,89359.0,89355.0,0.0111915]
[1765809678833,0.19009761,89359.0,89357.0,0.0111912]
[1765809679625,0.19009761,89359.0,89356.0,0.32852]
[1765809679830,0.19009761,89359.0,89356.0,0.3397113]
[1765809680127,0.19009761,89359.0,89355.0,0.001]
[1765809680128,0.0573,89356.0,89355.0,0.001]
[1765809680327,0.2273,89356.0,89355.0,0.001]
[1765809680530,0.068492,89351.0,89350.0,0.05744]
[1765809680830,0.02955,89340.0,89339.0,1.39852]
[1765809681130,0.21955,89340.0,89339.0,1.39852]
[1765809681337,0.21955,89340.0,89336.0,0.71204]
[1765809681338,0.0573,89337.0,89336.0,0.71204]
[1765809681627,0.0111957,89322.0,89308.0,0.0111973]
[1765809681821,0.17,89322.0,89306.0,0.00016787]
[1765809682022,0.0111973,89309.0,89306.0,0.00016787]
[1765809682223,0.0573,89307.0,89306.0,0.00016787]
[1765809682423,0.2173,89307.0,89306.0,0.00016787]
[1765809682823,0.21742279,89307.0,89306.0,0.00016787]
[1765809683430,0.21742279,89307.0,89298.0,0.0022397]
[1765809683431,0.0573,89299.0,89298.0,0.0022397]
[1765809683631,0.17,89299.0,89298.0,0.0022397]
[1765809683833,0.17,89299.0,89298.0,0.0589597]
[1765809684336,0.2273,89299.0,89298.0,0.0022397]
[1765809685033,0.00312279,89307.0,89298.0,0.0022397]
[1765809685034,0.00312279,89307.0,89306.0,0.0111976]
[1765809685238,0.17312279,89307.0,89306.0,0.0111976]
[1765809685428,0.17312279,89307.0,89306.0,0.0398176]
[1765809685735,0.17312279,89307.0,89306.0,0.02862]
[1765809685933,0.0573,89305.0,89304.0,0.03972]
[1765809686139,0.0111979,89304.0,89298.0,0.0022397]
[1765809686341,0.0573,89299.0,89298.0,0.0022397]
[1765809686524,0.18,89299.0,89298.0,0.0589597]
[1765809686724,0.18,89299.0,89298.0,0.0599597]
[1765809686925,0.18,89299.0,89298.0,0.0032397]
[1765809687128,0.0573,89299.0,89298.0,0.0032397]
[1765809687426,0.2573,89299.0,89298.0,0.0032397]
[1765809687630,0.0685,89287.0,89286.0,0.19808]
[1765809687940,0.0685014,89276.0,89266.0,0.71288]
[1765809688125,0.2585014,89276.0,89266.0,0.71288]
[1765809688733,0.0573,89267.0,89266.0,0.71288]
[1765809688924,0.2273,89267.0,89266.0,0.71288]
[1765809689127,0.2273,89267.0,89258.0,0.00224071]
[1765809689128,0.0685035,89259.0,89258.0,0.00224071]
[1765809689339,0.0112038,89257.0,89236.0,0.01668]
[1765809689532,0.0112048,89249.0,89236.0,0.01668]
[1765809689733,0.00014553,89248.0,89242.0,0.0112056]
[1765809689933,0.17014553,89248.0,89237.0,0.0112062]
[1765809690232,0.17014553,89248.0,89237.0,0.11204921]
[1765809690427,0.17014553,89248.0,89241.0,0.0112057]
[1765809690728,0.011206,89240.0,89236.0,0.01668]
[1765809691035,0.17,89240.0,89236.0,0.01668]
[1765809691234,0.00014553,89248.0,89247.0,0.107945]
[1765809691431,0.18114553,89248.0,89247.0,0.107945]
[1765809691627,0.18114553,89248.0,89247.0,0.09674]
[1765809691835,0.18114553,89248.0,89239.0,0.011206]
[1765809692030,0.18114553,89248.0,89245.0,0.0112052]
[1765809692231,0.18114553,89248.0,89247.0,0.05547]
[1765809692634,0.18114553,89248.0,89247.0,0.11119]
[1765809692831,0.00016808,89255.0,89247.0,0.11204795]
[1765809693031,0.0111995,89292.0,89247.0,0.28006797]
[1765809693231,0.0111995,89292.0,89289.0,0.0111997]
[1765809693232,0.17,89292.0,89289.0,0.0111997]
[1765809693436,0.17,89292.0,89262.0,0.03331]
[1765809693437,0.17,89292.0,89285.0,0.0112002]
[1765809693737,0.17,89292.0,89287.0,0.0112]
[1765809694042,0.05595,89287.0,89284.0,0.42056]
[1765809694236,0.05595,89285.0,89284.0,0.42056]
[1765809694426,0.31242,89285.0,89284.0,0.42056]
[1765809694629,0.3236203,89285.0,89284.0,0.42056]
[1765809694832,0.2,89285.0,89284.0,0.42056]
[1765809695839,0.2,89285.0,89284.0,0.53175]
[1765809696341,0.2,89285.0,89284.0,0.42056]
[1765809696741,0.19989022,89285.0,89284.0,0.713]
[1765809696942,0.05595,89282.0,89281.0,0.00016808]
[1765809697131,0.19989022,89282.0,89281.0,0.71316808]
[1765809697744,0.19989022,89282.0,89281.0,0.82435808]
[1765809697937,0.19989022,89282.0,89281.0,0.00016808]
[1765809698141,0.03539,89281.0,89263.0,1.411043]
[1765809698442,0.19,89281.0,89275.0,0.0112014]
[1765809698637,0.19,89281.0,89280.0,0.11119]
[1765809698839,0.19,89281.0,89280.0,0.1223909]
[1765809699939,0.00016808,89289.0,89288.0,0.1223899]
[1765809700143,0.18016808,89289.0,89288.0,0.6535099]
[1765809700533,0.18016808,89289.0,89288.0,0.53112]
[1765809700845,0.22611808,89289.0,89288.0,0.65508]
[1765809701034,0.17016808,89289.0,89288.0,0.65508]
[1765809701234,0.17016808,89289.0,89288.0,0.71055]
[1765809701436,0.17016808,89289.0,89288.0,0.76627]
[1765809701633,0.17016808,89289.0,89288.0,0.7774699]
[1765809702238,0.17016808,89289.0,89288.0,0.7217499]
[1765809702433,0.17016808,89289.0,89288.0,0.7774699]
[1765809702648,0.17016808,89289.0,89288.0,0.7784699]
[1765809702840,0.0001169,89291.0,89290.0,0.11119]
[1765809703443,0.0022397,89298.0,89290.0,0.11119]
[1765809703444,1e-08,89298.0,89297.0,0.1223888]
[1765809703635,0.18,89298.0,89297.0,0.11119]
[1765809703834,0.00016798,89306.0,89305.0,0.1223878]
[1765809704037,0.18,89306.0,89305.0,0.8350678]
[1765809704349,0.00016798,89314.0,89313.0,0.0666668]
[1765809704643,0.02026345,89314.0,89313.0,0.1223868]
[1765809704844,0.0111915,89355.0,89327.0,0.011195]
[1765809705046,0.2,89355.0,89341.0,0.0111932]
[1765809705243,0.2,89355.0,89343.0,0.0111929]
[1765809705542,0.2,89355.0,89331.0,0.11196515]
[1765809705748,0.00016788,89352.0,89345.0,0.0111927]
[1765809705938,0.11242,89347.0,89346.0,0.71332]
[1765809706133,0.05595,89335.0,89334.0,0.00016788]
[1765809706346,0.27218003,89335.0,89334.0,0.00016788]
[1765809706538,0.1236147,89329.0,89328.0,0.2594]
[1765809706740,0.1236147,89329.0,89307.0,0.0111975]
[1765809706741,0.0111959,89320.0,89307.0,0.0111975]
[1765809706939,8.446e-05,89319.0,89314.0,0.0111966]
[1765809707138,0.18128046,89319.0,89309.0,0.0111972]
[1765809707652,0.17008446,89319.0,89308.0,0.24004]
[1765809707845,0.17008446,89319.0,89311.0,0.0111969]
[1765809708250,0.17008446,89319.0,89308.0,0.24004]
[1765809708251,0.17008446,89319.0,89315.0,0.0111964]
[1765809708636,0.17108446,89319.0,89318.0,0.11119]
[1765809708944,0.02108446,89319.0,89318.0,0.11119]
[1765809709133,0.02108446,89319.0,89318.0,0.22315076]
[1765809709134,0.00108446,89319.0,89318.0,0.22315076]
[1765809709341,0.03539,89370.0,89319.0,0.044506]
[1765809709342,0.0111916,89354.0,89319.0,0.044506]
[1765809709549,0.0111924,89348.0,89336.0,0.0111937]
[1765809709751,0.1911924,89348.0,89338.0,0.0134323]
[1765809709947,0.18,89348.0,89338.0,0.0022387]
[1765809710246,0.18,89348.0,89345.0,0.0111927]
[1765809710440,7.886e-05,89347.0,89345.0,0.0111927]
[1765809710744,0.19007886,89347.0,89346.0,0.05547]
[1765809710947,7.886e-05,89347.0,89346.0,0.23939097]
[1765809711144,0.11242,89339.0,89338.0,0.00240658]
[1765809711451,0.30242,89339.0,89338.0,0.71640658]
[1765809711748,0.19,89339.0,89338.0,0.71640658]
[1765809712049,7.886e-05,89347.0,89346.0,0.1223826]
[1765809712347,0.18007886,89347.0,89346.0,0.1223826]
[1765809712539,0.18007886,89347.0,89346.0,0.11119]
[1765809712741,0.29249886,89347.0,89346.0,0.713]
[1765809713247,0.23602886,89347.0,89346.0,0.713]
[1765809713443,0.18007886,89347.0,89346.0,0.713]
[1765809713850,0.18007886,89347.0,89346.0,0.82419]
[1765809714246,0.18107886,89347.0,89346.0,0.713]
[1765809715643,0.18107886,89347.0,89346.0,0.82419]
[1765809715943,0.11242,89345.0,89340.0,0.0111934]
[1765809716142,0.11242,89345.0,89338.0,0.00240658]
[1765809716143,0.11242,89339.0,89338.0,0.00240658]
[1765809716343,0.00107886,89347.0,89346.0,0.11119]
[1765809716544,0.19107886,89347.0,89346.0,0.11119]
[1765809717451,0.19107886,89347.0,89345.0,0.0111927]
[1765809718040,0.07107886,89347.0,89346.0,0.22311442]
[1765809718245,0.00016788,89355.0,89354.0,0.1223816]
[1765809718445,0.19016788,89355.0,89354.0,0.8349016]
[1765809718952,0.31258788,89355.0,89354.0,0.82439378]
[1765809719148,0.31258788,89355.0,89354.0,0.71248]
[1765809719552,0.31458788,89355.0,89354.0,0.71248]
[1765809719753,0.32577938,89355.0,89354.0,0.71248]
[1765809720059,0.11242,89339.0,89338.0,0.00240658]
[1765809720264,0.29242,89339.0,89338.0,0.71492658]
[1765809720442,0.69242,89339.0,89338.0,0.00050005]
[1765809720646,0.1236155,89323.0,89322.0,0.1842]
[1765809720842,0.1236155,89323.0,89294.0,0.0276447]
[1765809720843,0.05595,89305.0,89284.0,0.03331]
[1765809721059,0.05595,89301.0,89298.0,0.0111985]
[1765809721257,0.2,89301.0,89300.0,0.11119]
[1765809721557,0.2,89301.0,89298.0,0.0111985]
[1765809721856,0.2,89301.0,89300.0,0.17203]
[1765809722168,0.0111913,89357.0,89321.0,0.0111957]
[1765809722349,0.0111913,89357.0,89347.0,0.15030161]
[1765809722350,0.19,89357.0,89347.0,0.15030161]
[1765809722549,0.18,89357.0,89356.0,0.23189]
[1765809722745,0.3,89371.0,89352.0,0.06602]
[1765809722951,0.19,89371.0,89361.0,0.15030161]
[1765809723143,0.0111897,89369.0,89361.0,1.65030161]
[1765809723350,0.10737,89362.0,89357.0,0.0111912]
[1765809723548,0.28737,89362.0,89359.0,0.011191]
[1765809723750,0.18,89362.0,89361.0,0.23189]
[1765809723956,0.22247,89360.0,89359.0,1.5]
[1765809724259,0.22247,89360.0,89353.0,0.00016788]
[1765809724260,0.2336616,89354.0,89353.0,0.00016788]
[1765809724556,0.2336616,89354.0,89318.0,0.1388684]
[1765809724557,0.22247,89335.0,89334.0,0.02924]
[1765809724761,0.41247,89335.0,89334.0,0.02924]
[1765809725348,0.1151,89327.0,89326.0,0.00016788]
[1765809725658,0.1151,89327.0,89291.0,0.001]
[1765809725659,0.2336666,89314.0,89313.0,0.71364]
[1765809725959,0.0111976,89307.0,89295.0,1.5]
[1765809726254,0.10737,89297.0,89296.0,0.7248389]
[1765809726457,0.41247,89297.0,89296.0,0.7136]
[1765809726758,0.18,89297.0,89296.0,0.7248389]
[1765809727457,0.18,89297.0,89296.0,0.9567289]
[1765809728249,0.00016797,89305.0,89304.0,0.2430879]
[1765809728448,0.19016797,89305.0,89304.0,0.2430879]
[1765809729045,0.19016797,89305.0,89304.0,0.0111979]
[1765809729250,0.19016797,89305.0,89303.0,0.011198]
[1765809729449,0.19016797,89305.0,89304.0,0.23189]
[1765809729757,0.0111951,89327.0,89313.0,0.0111966]
[1765809729961,0.2011951,89327.0,89314.0,0.71348]
[1765809730162,0.0111955,89324.0,89314.0,0.71348]
[1765809730359,0.0111955,89324.0,89304.0,0.0141978]
[1765809730360,0.0111959,89320.0,89304.0,0.0141978]
[1765809730555,0.0111971,89311.0,89304.0,0.003]
[1765809730861,0.16,89311.0,89306.0,0.0111976]
[1765809731154,0.16,89311.0,89309.0,0.0111973]
[1765809732158,0.16,89311.0,89310.0,0.11533]
[1765809732457,0.16,89311.0,89310.0,1.61533]
[1765809733749,0.00016797,89321.0,89320.0,0.23189]
[1765809733953,0.28753797,89321.0,89320.0,0.7243159]
[1765809734153,0.18016797,89321.0,89320.0,0.7243159]
[1765809734360,0.18016797,89321.0,89320.0,0.8396459]
[1765809734854,0.18016797,89321.0,89320.0,0.9562059]
[1765809735259,0.0111887,89378.0,89320.0,0.9562059]
[1765809735260,0.0111901,89367.0,89340.0,0.0111933]
[1765809735568,0.18,89352.0,89345.0,0.0111927]
[1765809735862,0.18,89352.0,89341.0,0.71308]
[1765809736158,0.011192,89351.0,89341.0,0.71308]
[1765809736365,0.18,89351.0,89341.0,0.71308]
[1765809736560,0.18,89351.0,89349.0,0.0111922]
[1765809736756,0.00016797,89355.0,89354.0,0.0111916]
[1765809736956,0.19016797,89355.0,89354.0,0.2430816]
[1765809737361,0.19016797,89355.0,89346.0,0.07984597]
[1765809737661,0.19016797,89355.0,89353.0,0.0111917]
[1765809737855,0.19016797,89355.0,89350.0,0.0111921]
[1765809738164,0.19016797,89355.0,89353.0,0.0111917]
[1765809738463,0.19016797,89355.0,89354.0,0.23189]
[1765809738464,0.189928,89355.0,89354.0,0.23189]
[1765809738969,0.190928,89355.0,89354.0,0.23189]
[1765809739564,0.189928,89355.0,89354.0,0.94469]
[1765809739766,0.192928,89355.0,89354.0,0.94469]
[1765809741666,0.00016788,89363.0,89362.0,0.2430806]
[1765809741967,0.07016788,89363.0,89362.0,0.2430806]
[1765809742163,0.07016788,89363.0,89362.0,0.35499438]
[1765809742352,0.0111867,89393.0,89362.0,0.11191378]
[1765809742559,0.19,89393.0,89370.0,0.33850348]
[1765809742760,0.19,89393.0,89377.0,0.0111887]
[1765809743258,0.0111873,89389.0,89380.0,0.0111883]
[1765809743575,0.2,89389.0,89388.0,0.23189]
[1765809743874,0.18,89389.0,89388.0,0.51068]
[1765809744063,0.18,89389.0,89388.0,0.62601]
[1765809744258,0.18,89389.0,89388.0,0.74257]
[1765809744462,0.00016788,89394.0,89393.0,0.23189]
[1765809744765,0.18016788,89394.0,89393.0,0.25805727]
[1765809745469,0.18016788,89394.0,89393.0,0.24687057]
[1765809746262,0.00016788,89394.0,89393.0,0.36992222]
[1765809746670,0.00016788,89394.0,89393.0,0.36073552]
[1765809746863,0.19016788,89394.0,89393.0,2.12790057]
[1765809747059,0.41263788,89394.0,89393.0,0.01698057]
[1765809747365,0.41239791,89394.0,89393.0,0.003]
[1765809747567,0.41239791,89394.0,89393.0,0.7148]
[1765809748769,0.42358451,89394.0,89393.0,0.71472]
[1765809749265,0.2336566,89394.0,89393.0,0.71472]
[1765809749667,0.1185566,89394.0,89393.0,0.71472]
[1765809749871,0.2336566,89394.0,89393.0,0.71472]
[1765809750762,0.3736566,89394.0,89393.0,0.003]
[1765809750959,0.3381185,89379.0,89378.0,0.01498503]
[1765809751167,0.4681185,89379.0,89378.0,0.03234503]
[1765809751572,0.3381185,89379.0,89378.0,0.03234503]
[1765809751873,0.0111862,89398.0,89378.0,0.03234503]
[1765809751874,0.011188,89383.0,89380.0,0.0111883]
[1765809752167,0.0111868,89393.0,89391.0,0.0111869]
[1765809752373,0.19,89393.0,89383.0,0.15018547]
[1765809752762,0.00016788,89402.0,89383.0,0.15018547]
[1765809752958,0.18016788,89402.0,89392.0,0.15018547]
[1765809753172,0.0111865,89396.0,89395.0,0.0111864]
[1765809753370,0.0111865,89396.0,89393.0,0.43848]
[1765809753371,0.353986,89399.0,89398.0,0.011186]
[1765809753574,0.17141,89394.0,89393.0,0.43848]
[1765809753873,0.17141,89381.0,89380.0,0.16137367]
[1765809754174,0.17141,89381.0,89380.0,0.6158682]
[1765809754467,0.0111882,89381.0,89376.0,0.01135668]
[1765809754672,0.3539882,89381.0,89380.0,0.71116]
[1765809754968,0.3539887,89377.0,89376.0,0.00016788]
[1765809755175,0.3539887,89377.0,89376.0,0.71128788]
[1765809755371,0.17141,89377.0,89376.0,0.72634284]
[1765809755572,0.3539905,89363.0,89362.0,0.01498591]
[1765809755873,0.3428,89355.0,89352.0,0.0111919]
[1765809756060,0.17141,89355.0,89354.0,0.0111916]
[1765809756463,0.06918,89370.0,89359.0,0.0111909]
[1765809756667,0.011191,89359.0,89357.0,0.0111912]
[1765809756867,0.17141,89357.0,89356.0,0.00016788]
[1765809757471,0.5428,89357.0,89356.0,0.71124788]
[1765809757674,0.41198,89370.0,89356.0,0.71124788]